[Event "Titled Tuesday Blitz February 07 Late 2023"]
[White "Floresvillar Gonzalez, Luis Migu"]
[Black "Bas Mas, Jose Joaquin"]
[WhiteFideId "5100542"]
[BlackFideId "22219064"]
[WhiteElo "2043"]
[BlackElo "2197"]
[Result "0-1"]
[Round "03"]
[TimeControl "180+2"]
[Date "2023.02.07"]
[WhiteClock "0:00:03"]
[BlackClock "0:00:23"]

1. d4 {[%clk 0:02:55]}  Nf6 {[%clk 0:02:59]} 2. c3 {[%clk 0:02:54]}  d5 {[%clk 0:02:58]} 3. Bg5 {[%clk 0:02:54]}  e6 {[%clk 0:02:58]} 4. Nd2 {[%clk 0:02:50]}  Nbd7 {[%clk 0:02:58]} 5. f4 {[%clk 0:02:47]}  Be7 {[%clk 0:02:49]} 6. Bxf6 {[%clk 0:02:44]}  Nxf6 {[%clk 0:02:49]} 7. e3 {[%clk 0:02:44]}  O-O {[%clk 0:02:49]} 8. Bd3 {[%clk 0:02:43]}  c5 {[%clk 0:02:49]} 9. Qb1 {[%clk 0:02:38]}  a5 {[%clk 0:02:37]} 10. Ngf3 {[%clk 0:02:36]}  a4 {[%clk 0:02:37]} 11. O-O {[%clk 0:02:33]}  a3 {[%clk 0:02:16]} 12. b3 {[%clk 0:02:30]}  Qa5 {[%clk 0:02:07]} 13. Qc1 {[%clk 0:02:06]}  Bd7 {[%clk 0:02:06]} 14. Ne5 {[%clk 0:02:03]}  Rfc8 {[%clk 0:02:01]} 15. Nxd7 {[%clk 0:01:56]}  Nxd7 {[%clk 0:02:00]} 16. Qb1 {[%clk 0:01:40]}  Nf8 {[%clk 0:01:54]} 17. Rc1 {[%clk 0:01:38]}  cxd4 {[%clk 0:01:51]} 18. b4 {[%clk 0:01:32]}  Qc7 {[%clk 0:01:21]} 19. cxd4 {[%clk 0:01:21]}  Qxc1+ {[%clk 0:01:21]} 20. Qxc1 {[%clk 0:01:16]}  Rxc1+ {[%clk 0:01:22]} 21. Rxc1 {[%clk 0:01:16]}  Bxb4 {[%clk 0:01:23]} 22. Nb3 {[%clk 0:01:13]}  g6 {[%clk 0:01:14]} 23. Rc7 {[%clk 0:01:12]}  Rb8 {[%clk 0:01:11]} 24. Kf2 {[%clk 0:01:07]}  h5 {[%clk 0:01:08]} 25. Ke2 {[%clk 0:01:06]}  Kg7 {[%clk 0:01:09]} 26. h3 {[%clk 0:01:00]}  Nh7 {[%clk 0:01:09]} 27. g4 {[%clk 0:00:58]}  hxg4 {[%clk 0:01:09]} 28. hxg4 {[%clk 0:00:58]}  Nf6 {[%clk 0:01:10]} 29. g5 {[%clk 0:00:55]}  Ne8 {[%clk 0:01:10]} 30. Rd7 {[%clk 0:00:33]}  Nd6 {[%clk 0:01:09]} 31. Nc5 {[%clk 0:00:27]}  Bxc5 {[%clk 0:00:56]} 32. dxc5 {[%clk 0:00:27]}  Nf5 {[%clk 0:00:56]} 33. Bxf5 {[%clk 0:00:25]}  gxf5 {[%clk 0:00:57]} 34. Kd3 {[%clk 0:00:23]}  Kf8 {[%clk 0:00:32]} 35. Kc3 {[%clk 0:00:19]}  Ke8 {[%clk 0:00:30]} 36. Rc7 {[%clk 0:00:18]}  b6 {[%clk 0:00:23]} 37. c6 {[%clk 0:00:18]}  Ra8 {[%clk 0:00:23]} 38. Rb7 {[%clk 0:00:16]}  Ra4 {[%clk 0:00:21]} 39. Rxb6 {[%clk 0:00:15]}  Ke7 {[%clk 0:00:21]} 40. Rb7+ {[%clk 0:00:15]}  Kd6 {[%clk 0:00:21]} 41. Rxf7 {[%clk 0:00:14]}  Kxc6 {[%clk 0:00:22]} 42. g6 {[%clk 0:00:14]}  Ra8 {[%clk 0:00:20]} 43. g7 {[%clk 0:00:13]}  Rg8 {[%clk 0:00:20]} 44. Kb4 {[%clk 0:00:13]}  d4 {[%clk 0:00:20]} 45. exd4 {[%clk 0:00:12]}  Kd5 {[%clk 0:00:21]} 46. Rd7+ {[%clk 0:00:10]}  Ke4 {[%clk 0:00:21]} 47. Kxa3 {[%clk 0:00:08]}  Kxf4 {[%clk 0:00:20]} 48. Kb4 {[%clk 0:00:08]}  Ke4 {[%clk 0:00:21]} 49. a4 {[%clk 0:00:07]}  f4 {[%clk 0:00:21]} 50. a5 {[%clk 0:00:07]}  f3 {[%clk 0:00:22]} 51. a6 {[%clk 0:00:07]}  f2 {[%clk 0:00:22]} 52. Rf7 {[%clk 0:00:07]}  Rxg7 {[%clk 0:00:21]} 53. Rxf2 {[%clk 0:00:07]}  Kxd4 {[%clk 0:00:21]} 54. Kb5 {[%clk 0:00:04]}  e5 {[%clk 0:00:21]} 55. Kb6 {[%clk 0:00:04]}  e4 {[%clk 0:00:21]} 56. a7 {[%clk 0:00:04]}  Rxa7 {[%clk 0:00:21]} 57. Kxa7 {[%clk 0:00:04]}  e3 {[%clk 0:00:21]} 58. Rf1 {[%clk 0:00:03]}  Kd3 {[%clk 0:00:22]} 59. Kb6 {[%clk 0:00:03]}  e2 {[%clk 0:00:23]} 60. Rh1 {[%clk 0:00:03]}  Kd2 {[%clk 0:00:23]} 61. Kc5 {[%clk 0:00:03]}  e1=Q {[%clk 0:00:23]} 62. Rf1 {[%clk 0:00:03]}  Qxf1 {[%clk 0:00:23]} 0-1


[Site "https://www.chess.com"]

[Event "Titled Tuesday Blitz February 07 Late 2023"]
[White "Ward, Ieuan C"]
[Black "Kazmaier, Daniel"]
[WhiteFideId "406627"]
[BlackFideId "2606089"]
[WhiteElo "2028"]
[BlackElo "2171"]
[Result "0-1"]
[Round "03"]
[TimeControl "180+2"]
[Date "2023.02.07"]
[WhiteClock "0:00:02"]
[BlackClock "0:01:15"]

1. d4 {[%clk 0:02:54]}  f5 {[%clk 0:02:59]} 2. c4 {[%clk 0:02:53]}  Nf6 {[%clk 0:02:59]} 3. Nc3 {[%clk 0:02:54]}  e6 {[%clk 0:02:59]} 4. Nf3 {[%clk 0:02:55]}  Be7 {[%clk 0:03:00]} 5. g3 {[%clk 0:02:56]}  O-O {[%clk 0:03:00]} 6. Bg2 {[%clk 0:02:56]}  d6 {[%clk 0:03:01]} 7. O-O {[%clk 0:02:57]}  Qe8 {[%clk 0:03:02]} 8. b3 {[%clk 0:02:57]}  Qh5 {[%clk 0:03:02]} 9. Bb2 {[%clk 0:02:55]}  Nc6 {[%clk 0:03:02]} 10. e3 {[%clk 0:02:54]}  e5 {[%clk 0:03:00]} 11. dxe5 {[%clk 0:02:53]}  dxe5 {[%clk 0:03:00]} 12. Nd5 {[%clk 0:02:53]}  e4 {[%clk 0:02:55]} 13. Nxe7+ {[%clk 0:02:47]}  Nxe7 {[%clk 0:02:55]} 14. Nd4 {[%clk 0:02:38]}  Qh6 {[%clk 0:02:46]} 15. Nb5 {[%clk 0:02:33]}  c5 {[%clk 0:02:24]} 16. Qd6 {[%clk 0:02:22]}  Ng4 {[%clk 0:02:14]} 17. Qxh6 {[%clk 0:01:51]}  Nxh6 {[%clk 0:02:15]} 18. Ba3 {[%clk 0:01:32]}  b6 {[%clk 0:02:09]} 19. b4 {[%clk 0:01:26]}  cxb4 {[%clk 0:02:03]} 20. Bxb4 {[%clk 0:01:27]}  Rf7 {[%clk 0:02:02]} 21. f3 {[%clk 0:01:10]}  Nc6 {[%clk 0:01:58]} 22. Bd6 {[%clk 0:01:07]}  exf3 {[%clk 0:01:49]} 23. Bxf3 {[%clk 0:01:08]}  Bb7 {[%clk 0:01:49]} 24. Bd5 {[%clk 0:01:07]}  Rd8 {[%clk 0:01:44]} 25. Rad1 {[%clk 0:01:00]}  a6 {[%clk 0:01:39]} 26. Nc7 {[%clk 0:00:57]}  Rxd6 {[%clk 0:01:37]} 27. Bxf7+ {[%clk 0:00:46]}  Nxf7 {[%clk 0:01:38]} 28. Nd5 {[%clk 0:00:21]}  g6 {[%clk 0:01:35]} 29. Nxb6 {[%clk 0:00:20]}  Re6 {[%clk 0:01:28]} 30. Rf2 {[%clk 0:00:19]}  Nce5 {[%clk 0:01:20]} 31. Nd5 {[%clk 0:00:16]}  Nxc4 {[%clk 0:01:18]} 32. Rc2 {[%clk 0:00:12]}  Bxd5 {[%clk 0:01:16]} 33. Rxd5 {[%clk 0:00:11]}  Nxe3 {[%clk 0:01:17]} 34. Rc8+ {[%clk 0:00:12]}  Kg7 {[%clk 0:01:17]} 35. Rd7 {[%clk 0:00:12]}  Ng4 {[%clk 0:01:15]} 36. Rcc7 {[%clk 0:00:12]}  Re1+ {[%clk 0:01:15]} 37. Kg2 {[%clk 0:00:12]}  Ne5 {[%clk 0:01:15]} 38. Re7 {[%clk 0:00:12]}  Re2+ {[%clk 0:01:16]} 39. Kh3 {[%clk 0:00:11]}  Kf6 {[%clk 0:01:15]} 40. Re8 {[%clk 0:00:02]}  g5 {[%clk 0:01:15]} 0-1


[Site "https://www.chess.com"]

[Event "Titled Tuesday Blitz February 07 Late 2023"]
[White "Kielinkei"]
[Black "mestrefeitosa19"]
[WhiteElo "2394"]
[BlackElo "2209"]
[Result "0-1"]
[Round "03"]
[TimeControl "180+2"]
[Date "2023.02.07"]
[WhiteClock "0:00:03"]
[BlackClock "0:00:29"]

1. d4 {[%clk 0:03:00]}  d5 {[%clk 0:03:00]} 2. c4 {[%clk 0:02:58]}  e6 {[%clk 0:02:59]} 3. Nc3 {[%clk 0:02:57]}  Nf6 {[%clk 0:02:58]} 4. cxd5 {[%clk 0:02:57]}  exd5 {[%clk 0:02:58]} 5. Bg5 {[%clk 0:02:58]}  Be7 {[%clk 0:02:59]} 6. e3 {[%clk 0:02:58]}  O-O {[%clk 0:02:59]} 7. Bd3 {[%clk 0:02:57]}  b6 {[%clk 0:03:00]} 8. Qc2 {[%clk 0:02:56]}  h6 {[%clk 0:02:57]} 9. Bh4 {[%clk 0:02:56]}  Bb7 {[%clk 0:02:57]} 10. Nf3 {[%clk 0:02:56]}  Nbd7 {[%clk 0:02:56]} 11. O-O {[%clk 0:02:53]}  c5 {[%clk 0:02:56]} 12. dxc5 {[%clk 0:02:38]}  Nxc5 {[%clk 0:02:37]} 13. Be2 {[%clk 0:02:27]}  Nfe4 {[%clk 0:02:35]} 14. Bxe7 {[%clk 0:02:25]}  Qxe7 {[%clk 0:02:34]} 15. Rfd1 {[%clk 0:02:22]}  Rfe8 {[%clk 0:02:26]} 16. Nxe4 {[%clk 0:02:17]}  Nxe4 {[%clk 0:02:17]} 17. Qd3 {[%clk 0:02:08]}  a5 {[%clk 0:02:11]} 18. Bf1 {[%clk 0:01:55]}  Rac8 {[%clk 0:01:18]} 19. Rac1 {[%clk 0:01:53]}  Qb4 {[%clk 0:01:15]} 20. b3 {[%clk 0:01:42]}  Qa3 {[%clk 0:01:13]} 21. Rxc8 {[%clk 0:00:37]}  Rxc8 {[%clk 0:01:09]} 22. Nd2 {[%clk 0:00:32]}  Qxa2 {[%clk 0:00:57]} 23. Nxe4 {[%clk 0:00:27]}  dxe4 {[%clk 0:00:57]} 24. Qb5 {[%clk 0:00:27]}  Qc2 {[%clk 0:00:48]} 25. Rd4 {[%clk 0:00:17]}  Qc5 {[%clk 0:00:45]} 26. Qd7 {[%clk 0:00:11]}  Ba8 {[%clk 0:00:38]} 27. Qg4 {[%clk 0:00:06]}  Qc1 {[%clk 0:00:30]} 28. h4 {[%clk 0:00:03]}  Bb7 {[%clk 0:00:29]} 0-1


[Site "https://www.chess.com"]

[Event "Titled Tuesday Blitz February 07 Late 2023"]
[White "ritanovikova"]
[Black "Melikhov, Evgeny V."]
[BlackFideId "4122046"]
[WhiteElo "2226"]
[BlackElo "2269"]
[Result "0-1"]
[Round "03"]
[TimeControl "180+2"]
[Date "2023.02.07"]
[WhiteClock "0:00:56"]
[BlackClock "0:00:18"]

1. e4 {[%clk 0:02:57]}  c5 {[%clk 0:02:58]} 2. Nc3 {[%clk 0:02:57]}  Nc6 {[%clk 0:02:57]} 3. d3 {[%clk 0:02:56]}  g6 {[%clk 0:02:57]} 4. Be3 {[%clk 0:02:46]}  d6 {[%clk 0:02:56]} 5. Qd2 {[%clk 0:02:46]}  Bg7 {[%clk 0:02:54]} 6. g3 {[%clk 0:02:46]}  e6 {[%clk 0:02:52]} 7. Bg2 {[%clk 0:02:46]}  h5 {[%clk 0:02:52]} 8. h4 {[%clk 0:02:46]}  Nge7 {[%clk 0:02:51]} 9. Nd1 {[%clk 0:02:46]}  Rb8 {[%clk 0:02:50]} 10. c3 {[%clk 0:02:45]}  b5 {[%clk 0:02:49]} 11. Ne2 {[%clk 0:02:46]}  a5 {[%clk 0:02:37]} 12. d4 {[%clk 0:02:43]}  cxd4 {[%clk 0:02:31]} 13. cxd4 {[%clk 0:02:44]}  b4 {[%clk 0:02:25]} 14. O-O {[%clk 0:02:41]}  O-O {[%clk 0:02:23]} 15. Bh6 {[%clk 0:02:35]}  Qb6 {[%clk 0:02:17]} 16. Bxg7 {[%clk 0:02:34]}  Kxg7 {[%clk 0:02:17]} 17. Ne3 {[%clk 0:02:32]}  e5 {[%clk 0:02:14]} 18. d5 {[%clk 0:02:25]}  Nd4 {[%clk 0:02:10]} 19. Nxd4 {[%clk 0:02:24]}  Qxd4 {[%clk 0:02:04]} 20. Qxd4 {[%clk 0:02:23]}  exd4 {[%clk 0:02:04]} 21. Nc2 {[%clk 0:02:23]}  d3 {[%clk 0:01:59]} 22. Nd4 {[%clk 0:02:13]}  Ba6 {[%clk 0:01:58]} 23. Rfd1 {[%clk 0:02:13]}  Rfc8 {[%clk 0:01:40]} 24. Bf1 {[%clk 0:02:10]}  f5 {[%clk 0:01:35]} 25. Ne6+ {[%clk 0:02:02]}  Kf6 {[%clk 0:01:33]} 26. f3 {[%clk 0:01:59]}  Rc2 {[%clk 0:01:07]} 27. Rab1 {[%clk 0:01:53]}  fxe4 {[%clk 0:00:37]} 28. fxe4 {[%clk 0:01:51]}  Ke5 {[%clk 0:00:38]} 29. Ng5 {[%clk 0:01:44]}  Rbc8 {[%clk 0:00:26]} 30. Bxd3 {[%clk 0:01:42]}  Bxd3 {[%clk 0:00:25]} 31. Rxd3 {[%clk 0:01:43]}  Re2 {[%clk 0:00:25]} 32. Nf7+ {[%clk 0:01:22]}  Kxe4 {[%clk 0:00:23]} 33. Nxd6+ {[%clk 0:01:21]}  Kxd3 {[%clk 0:00:23]} 34. Nxc8 {[%clk 0:01:20]}  Nxd5 {[%clk 0:00:23]} 35. Rd1+ {[%clk 0:01:18]}  Rd2 {[%clk 0:00:23]} 36. Rb1 {[%clk 0:01:09]}  Ke3 {[%clk 0:00:20]} 37. Nd6 {[%clk 0:01:00]}  Kf3 {[%clk 0:00:19]} 38. Kf1 {[%clk 0:00:56]}  Ne3+ {[%clk 0:00:18]} 39. Ke1 {[%clk 0:00:56]}  Re2# {[%clk 0:00:18]} 0-1


[Site "https://www.chess.com"]

[Event "Titled Tuesday Blitz February 07 Late 2023"]
[White "Torres Dominguez, David"]
[Black "Prieto Aranguren, Alain"]
[WhiteFideId "2220857"]
[BlackFideId "2268906"]
[WhiteElo "1994"]
[BlackElo "2258"]
[Result "0-1"]
[Round "03"]
[TimeControl "180+2"]
[Date "2023.02.07"]
[WhiteClock "0:00:03"]
[BlackClock "0:00:07"]

1. e4 {[%clk 0:02:57]}  c6 {[%clk 0:02:58]} 2. Nf3 {[%clk 0:02:55]}  d5 {[%clk 0:02:57]} 3. d3 {[%clk 0:02:55]}  g6 {[%clk 0:02:56]} 4. Be2 {[%clk 0:02:53]}  Bg7 {[%clk 0:02:56]} 5. Nbd2 {[%clk 0:02:54]}  e5 {[%clk 0:02:56]} 6. O-O {[%clk 0:02:55]}  d4 {[%clk 0:02:50]} 7. c3 {[%clk 0:02:51]}  c5 {[%clk 0:02:49]} 8. cxd4 {[%clk 0:02:49]}  cxd4 {[%clk 0:02:49]} 9. Nc4 {[%clk 0:02:39]}  Nc6 {[%clk 0:02:42]} 10. a4 {[%clk 0:02:39]}  Nge7 {[%clk 0:02:41]} 11. a5 {[%clk 0:02:38]}  O-O {[%clk 0:02:40]} 12. Bd2 {[%clk 0:02:36]}  Be6 {[%clk 0:02:34]} 13. Rc1 {[%clk 0:02:36]}  h6 {[%clk 0:02:31]} 14. Rc2 {[%clk 0:02:31]}  Rc8 {[%clk 0:02:27]} 15. Qc1 {[%clk 0:02:31]}  Bxc4 {[%clk 0:02:07]} 16. Rxc4 {[%clk 0:02:30]}  Nxa5 {[%clk 0:02:06]} 17. Rxc8 {[%clk 0:02:29]}  Nxc8 {[%clk 0:02:06]} 18. Bxh6 {[%clk 0:02:00]}  Nb3 {[%clk 0:02:01]} 19. Qc2 {[%clk 0:01:35]}  Bxh6 {[%clk 0:01:52]} 20. Qxb3 {[%clk 0:01:35]}  Qc7 {[%clk 0:01:50]} 21. Ra1 {[%clk 0:01:29]}  a6 {[%clk 0:01:38]} 22. Bd1 {[%clk 0:01:17]}  Na7 {[%clk 0:01:37]} 23. Qd5 {[%clk 0:01:17]}  Bg7 {[%clk 0:01:29]} 24. Bb3 {[%clk 0:01:12]}  Rc8 {[%clk 0:01:19]} 25. h3 {[%clk 0:01:09]}  Nb5 {[%clk 0:01:13]} 26. Ng5 {[%clk 0:01:05]}  Nd6 {[%clk 0:01:07]} 27. Kh2 {[%clk 0:00:52]}  Bf6 {[%clk 0:01:04]} 28. Nf3 {[%clk 0:00:42]}  Nb5 {[%clk 0:00:56]} 29. Nd2 {[%clk 0:00:35]}  Qc6 {[%clk 0:00:50]} 30. Qxc6 {[%clk 0:00:34]}  Rxc6 {[%clk 0:00:48]} 31. Ba4 {[%clk 0:00:31]}  Rc5 {[%clk 0:00:37]} 32. Bb3 {[%clk 0:00:20]}  Nd6 {[%clk 0:00:31]} 33. Kg1 {[%clk 0:00:16]}  Bg5 {[%clk 0:00:27]} 34. Nc4 {[%clk 0:00:16]}  Nxc4 {[%clk 0:00:26]} 35. Bxc4 {[%clk 0:00:16]}  Bd8 {[%clk 0:00:21]} 36. b4 {[%clk 0:00:15]}  Rc7 {[%clk 0:00:18]} 37. Ra2 {[%clk 0:00:12]}  Be7 {[%clk 0:00:18]} 38. b5 {[%clk 0:00:11]}  axb5 {[%clk 0:00:17]} 39. Bxb5 {[%clk 0:00:12]}  Rc3 {[%clk 0:00:17]} 40. Ra8+ {[%clk 0:00:09]}  Kg7 {[%clk 0:00:16]} 41. Ra7 {[%clk 0:00:10]}  Rc7 {[%clk 0:00:16]} 42. Bc4 {[%clk 0:00:10]}  Bc5 {[%clk 0:00:15]} 43. Ra4 {[%clk 0:00:08]}  b6 {[%clk 0:00:15]} 44. Ra2 {[%clk 0:00:07]}  Rb7 {[%clk 0:00:15]} 45. Bd5 {[%clk 0:00:07]}  Rc7 {[%clk 0:00:15]} 46. Bc4 {[%clk 0:00:07]}  Kf6 {[%clk 0:00:15]} 47. Rb2 {[%clk 0:00:06]}  Kg5 {[%clk 0:00:15]} 48. Ra2 {[%clk 0:00:06]}  f5 {[%clk 0:00:14]} 49. exf5 {[%clk 0:00:05]}  gxf5 {[%clk 0:00:13]} 50. g3 {[%clk 0:00:06]}  e4 {[%clk 0:00:13]} 51. Kg2 {[%clk 0:00:04]}  e3 {[%clk 0:00:13]} 52. f4+ {[%clk 0:00:03]}  Kf6 {[%clk 0:00:13]} 53. Kf3 {[%clk 0:00:03]}  Ke7 {[%clk 0:00:12]} 54. g4 {[%clk 0:00:04]}  fxg4+ {[%clk 0:00:09]} 55. hxg4 {[%clk 0:00:04]}  Kd6 {[%clk 0:00:09]} 56. g5 {[%clk 0:00:04]}  Rh7 {[%clk 0:00:08]} 57. g6 {[%clk 0:00:03]}  Rh3+ {[%clk 0:00:08]} 58. Ke4 {[%clk 0:00:03]}  Rg3 {[%clk 0:00:08]} 59. f5 {[%clk 0:00:03]}  Bb4 {[%clk 0:00:07]} 0-1


[Site "https://www.chess.com"]

[Event "Titled Tuesday Blitz February 07 Late 2023"]
[White "Sailer, Mike"]
[Black "Lucassen, Mickey"]
[WhiteFideId "2012901"]
[BlackFideId "12919110"]
[WhiteElo "2109"]
[BlackElo "2023"]
[Result "0-1"]
[Round "03"]
[TimeControl "180+2"]
[Date "2023.02.07"]
[WhiteClock "0:00:10"]
[BlackClock "0:00:21"]

1. d4 {[%clk 0:02:59]}  Nf6 {[%clk 0:02:59]} 2. Bf4 {[%clk 0:02:57]}  d6 {[%clk 0:02:55]} 3. e3 {[%clk 0:02:57]}  g6 {[%clk 0:02:56]} 4. Nf3 {[%clk 0:02:57]}  Bg7 {[%clk 0:02:55]} 5. Be2 {[%clk 0:02:57]}  O-O {[%clk 0:02:55]} 6. O-O {[%clk 0:02:58]}  c5 {[%clk 0:02:56]} 7. c4 {[%clk 0:02:57]}  cxd4 {[%clk 0:02:55]} 8. exd4 {[%clk 0:02:58]}  d5 {[%clk 0:02:56]} 9. c5 {[%clk 0:02:56]}  Nc6 {[%clk 0:02:56]} 10. Nc3 {[%clk 0:02:56]}  Ne4 {[%clk 0:02:56]} 11. h3 {[%clk 0:02:53]}  Bf5 {[%clk 0:02:49]} 12. Rc1 {[%clk 0:02:38]}  Nxc3 {[%clk 0:02:46]} 13. bxc3 {[%clk 0:02:34]}  Qa5 {[%clk 0:02:46]} 14. Qd2 {[%clk 0:02:30]}  Rad8 {[%clk 0:02:38]} 15. Rfe1 {[%clk 0:02:23]}  Rfe8 {[%clk 0:02:37]} 16. Bd3 {[%clk 0:02:16]}  Bxd3 {[%clk 0:02:20]} 17. Qxd3 {[%clk 0:02:16]}  Qxa2 {[%clk 0:02:11]} 18. Ra1 {[%clk 0:01:48]}  Qc4 {[%clk 0:02:10]} 19. Qxc4 {[%clk 0:01:43]}  dxc4 {[%clk 0:02:11]} 20. Ra4 {[%clk 0:01:41]}  f6 {[%clk 0:02:03]} 21. Rxc4 {[%clk 0:01:33]}  e5 {[%clk 0:02:03]} 22. Be3 {[%clk 0:01:30]}  exd4 {[%clk 0:01:59]} 23. cxd4 {[%clk 0:01:26]}  f5 {[%clk 0:01:58]} 24. Rb1 {[%clk 0:01:21]}  Rd7 {[%clk 0:01:47]} 25. g3 {[%clk 0:01:14]}  h6 {[%clk 0:01:39]} 26. h4 {[%clk 0:01:14]}  Kf7 {[%clk 0:01:38]} 27. d5 {[%clk 0:00:57]}  Rxd5 {[%clk 0:01:36]} 28. Rxb7+ {[%clk 0:00:57]}  Re7 {[%clk 0:01:36]} 29. Rxe7+ {[%clk 0:00:53]}  Kxe7 {[%clk 0:01:35]} 30. Rc1 {[%clk 0:00:47]}  a5 {[%clk 0:01:13]} 31. Rb1 {[%clk 0:00:44]}  a4 {[%clk 0:01:11]} 32. Rb6 {[%clk 0:00:43]}  a3 {[%clk 0:00:49]} 33. Rxc6 {[%clk 0:00:43]}  a2 {[%clk 0:00:45]} 34. Ra6 {[%clk 0:00:40]}  Rd1+ {[%clk 0:00:44]} 35. Kg2 {[%clk 0:00:38]}  a1=Q {[%clk 0:00:45]} 36. Rxa1 {[%clk 0:00:38]}  Rxa1 {[%clk 0:00:46]} 37. Nd4 {[%clk 0:00:22]}  Ra4 {[%clk 0:00:40]} 38. Nb5 {[%clk 0:00:19]}  Kd7 {[%clk 0:00:39]} 39. Nd6 {[%clk 0:00:19]}  Bd4 {[%clk 0:00:33]} 40. Bxd4 {[%clk 0:00:13]}  Rxd4 {[%clk 0:00:34]} 41. Nf7 {[%clk 0:00:10]}  Ke7 {[%clk 0:00:20]} 42. Nxh6 {[%clk 0:00:10]}  Kf8 {[%clk 0:00:20]} 43. h5 {[%clk 0:00:11]}  Kg7 {[%clk 0:00:19]} 44. hxg6 {[%clk 0:00:08]}  Kxh6 {[%clk 0:00:19]} 45. c6 {[%clk 0:00:05]}  Rc4 {[%clk 0:00:19]} 46. f3 {[%clk 0:00:05]}  Rxc6 {[%clk 0:00:18]} 47. g4 {[%clk 0:00:06]}  Kxg6 {[%clk 0:00:18]} 48. gxf5+ {[%clk 0:00:06]}  Kxf5 {[%clk 0:00:19]} 49. Kg3 {[%clk 0:00:07]}  Rg6+ {[%clk 0:00:19]} 50. Kf2 {[%clk 0:00:08]}  Kf4 {[%clk 0:00:19]} 51. Ke2 {[%clk 0:00:09]}  Rg3 {[%clk 0:00:20]} 52. Kd3 {[%clk 0:00:09]}  Rxf3+ {[%clk 0:00:20]} 53. Kd4 {[%clk 0:00:10]}  Rf1 {[%clk 0:00:21]} 0-1


[Site "https://www.chess.com"]

[Event "Titled Tuesday Blitz February 07 Late 2023"]
[White "Rizzo, Tobias"]
[Black "Michalski, Olaf"]
[WhiteFideId "30942691"]
[BlackFideId "1106740"]
[WhiteElo "1867"]
[BlackElo "2273"]
[Result "1-0"]
[Round "03"]
[TimeControl "180+2"]
[Date "2023.02.07"]
[WhiteClock "0:01:03"]
[BlackClock "0:00:18"]

1. d4 {[%clk 0:03:00]}  d6 {[%clk 0:02:55]} 2. e3 {[%clk 0:03:00]}  Nd7 {[%clk 0:02:53]} 3. c4 {[%clk 0:02:59]}  e5 {[%clk 0:02:51]} 4. Nc3 {[%clk 0:02:58]}  f5 {[%clk 0:02:47]} 5. Nf3 {[%clk 0:02:56]}  Ngf6 {[%clk 0:02:47]} 6. b3 {[%clk 0:02:52]}  Be7 {[%clk 0:02:41]} 7. Bb2 {[%clk 0:02:51]}  O-O {[%clk 0:02:40]} 8. Be2 {[%clk 0:02:50]}  c6 {[%clk 0:02:34]} 9. O-O {[%clk 0:02:42]}  e4 {[%clk 0:02:33]} 10. Nd2 {[%clk 0:02:42]}  d5 {[%clk 0:02:33]} 11. Rc1 {[%clk 0:02:35]}  a6 {[%clk 0:02:20]} 12. a4 {[%clk 0:02:29]}  Kh8 {[%clk 0:02:16]} 13. f3 {[%clk 0:02:15]}  exf3 {[%clk 0:02:01]} 14. Bxf3 {[%clk 0:02:09]}  Qa5 {[%clk 0:01:40]} 15. Ne2 {[%clk 0:01:55]}  Ne4 {[%clk 0:00:50]} 16. Bxe4 {[%clk 0:01:35]}  dxe4 {[%clk 0:00:41]} 17. Nf4 {[%clk 0:01:22]}  Nf6 {[%clk 0:00:34]} 18. d5 {[%clk 0:01:03]}  cxd5 {[%clk 0:00:19]} 19. cxd5 {[%clk 0:01:04]}  Nxd5 {[%clk 0:00:18]} 20. Nc4 {[%clk 0:01:03]} 1-0


[Site "https://www.chess.com"]

[Event "Titled Tuesday Blitz February 07 Late 2023"]
[White "Winkels, Marcel"]
[Black "Jarocka, Liwia"]
[WhiteFideId "1003887"]
[BlackFideId "21807558"]
[WhiteElo "1960"]
[BlackElo "2225"]
[Result "1/2-1/2"]
[Round "03"]
[TimeControl "180+2"]
[Date "2023.02.07"]
[WhiteClock "0:00:43"]
[BlackClock "0:00:18"]

1. b3 {[%clk 0:03:00]}  c5 {[%clk 0:03:00]} 2. Bb2 {[%clk 0:03:00]}  Nf6 {[%clk 0:03:00]} 3. e3 {[%clk 0:03:00]}  d5 {[%clk 0:03:00]} 4. f4 {[%clk 0:03:00]}  Nc6 {[%clk 0:03:00]} 5. Nf3 {[%clk 0:03:01]}  g6 {[%clk 0:03:00]} 6. Be2 {[%clk 0:03:00]}  Bg7 {[%clk 0:03:00]} 7. O-O {[%clk 0:03:00]}  O-O {[%clk 0:03:01]} 8. Ne5 {[%clk 0:02:58]}  d4 {[%clk 0:02:58]} 9. Nxc6 {[%clk 0:02:50]}  bxc6 {[%clk 0:02:57]} 10. Bf3 {[%clk 0:02:50]}  Bb7 {[%clk 0:02:56]} 11. exd4 {[%clk 0:02:47]}  cxd4 {[%clk 0:02:54]} 12. Na3 {[%clk 0:02:48]}  Qd7 {[%clk 0:02:50]} 13. Nc4 {[%clk 0:02:45]}  c5 {[%clk 0:02:49]} 14. Ne5 {[%clk 0:02:44]}  Qc7 {[%clk 0:02:50]} 15. d3 {[%clk 0:02:39]}  Nd5 {[%clk 0:02:44]} 16. Bxd5 {[%clk 0:02:16]}  Bxd5 {[%clk 0:02:42]} 17. Qe2 {[%clk 0:02:15]}  a5 {[%clk 0:02:35]} 18. a4 {[%clk 0:02:13]}  e6 {[%clk 0:02:31]} 19. Bc1 {[%clk 0:02:11]}  Rad8 {[%clk 0:02:18]} 20. Bd2 {[%clk 0:02:10]}  Ra8 {[%clk 0:02:07]} 21. Rae1 {[%clk 0:02:06]}  Rfd8 {[%clk 0:02:06]} 22. Qf2 {[%clk 0:02:01]}  Re8 {[%clk 0:01:47]} 23. Re2 {[%clk 0:02:00]}  f6 {[%clk 0:01:39]} 24. Nf3 {[%clk 0:01:56]}  e5 {[%clk 0:01:32]} 25. fxe5 {[%clk 0:01:54]}  fxe5 {[%clk 0:01:33]} 26. Ng5 {[%clk 0:01:48]}  Rf8 {[%clk 0:01:23]} 27. Qe1 {[%clk 0:01:45]}  Rxf1+ {[%clk 0:01:22]} 28. Qxf1 {[%clk 0:01:43]}  Rf8 {[%clk 0:01:22]} 29. Qe1 {[%clk 0:01:42]}  Qe7 {[%clk 0:01:15]} 30. Ne4 {[%clk 0:01:38]}  h6 {[%clk 0:01:12]} 31. Bxa5 {[%clk 0:01:32]}  h5 {[%clk 0:01:09]} 32. Bb6 {[%clk 0:01:27]}  Bxe4 {[%clk 0:01:07]} 33. Rxe4 {[%clk 0:01:25]}  Bh6 {[%clk 0:01:05]} 34. Ba5 {[%clk 0:01:06]}  Be3+ {[%clk 0:01:01]} 35. Kh1 {[%clk 0:01:04]}  Qf6 {[%clk 0:01:01]} 36. h3 {[%clk 0:00:59]}  Qf1+ {[%clk 0:00:56]} 37. Qxf1 {[%clk 0:00:57]}  Rxf1+ {[%clk 0:00:56]} 38. Kh2 {[%clk 0:00:57]}  Bf4+ {[%clk 0:00:55]} 39. g3 {[%clk 0:00:56]}  Rf2+ {[%clk 0:00:54]} 40. Kg1 {[%clk 0:00:53]}  Be3 {[%clk 0:00:46]} 41. Kh1 {[%clk 0:00:45]}  Rf1+ {[%clk 0:00:34]} 42. Kg2 {[%clk 0:00:44]}  Rf2+ {[%clk 0:00:28]} 43. Kh1 {[%clk 0:00:44]}  Rf1+ {[%clk 0:00:18]} 44. Kg2 {[%clk 0:00:43]}  Rf2+ {[%clk 0:00:18]} 45. Kh1 {[%clk 0:00:43]} 1/2-1/2


[Site "https://www.chess.com"]